Cogmind - Beta 10.2 @@@ ROGUE MODE // 2021.11.02 @ 19:41:48 Player: Dizzar Result: Self-destructed Performance ------------- Evolutions (2) 1000 Regions Visited (7) 1400 Robots Destroyed (37) 185 Value Destroyed (1165) 1165 Prototype IDs (30) 600 Alien Tech Used (0) 0 Bonus (300) 300 TOTAL SCORE: 4650 Bonus ------- Aligned with FarCom 300 Cogmind --------- Core Integrity 337/550 Matter 300/300 Energy 100/100 System Corruption 1% Temperature Cool (0) Movement Rolling (120) Ox2 Location -8/Materials Parts ------- > --- POWER (1) -------- (None) > --- PROPULSION (2) --- Compact Wheel > --- UTILITY (6) ------ Small Storage Unit High-capacity Storage Unit > --- WEAPON (2) ------- Advanced Beam Rifle Chainsword > --- INVENTORY (14) --- Light Deuterium Engine Nuclear Core Micro Nuclear Core Aluminum Leg Carbon-fiber Leg Minigun Gauss Rifle Proton Missile Launcher Improved Datajack Deploy-a-Sentry Deploy-a-Sentry Deploy-a-Sentry Peak State ------------ > --- POWER ------------ (None) > --- PROPULSION ------- Aluminum Leg Carbon-fiber Leg > --- UTILITY ---------- Small Storage Unit High-capacity Storage Unit > --- WEAPON ----------- Proton Missile Launcher Chainsword > --- INVENTORY -------- Light Deuterium Engine Nuclear Core Micro Nuclear Core Aluminum Leg Advanced Beam Rifle Minigun Gauss Rifle Deploy-a-Sentry Deploy-a-Sentry Deploy-a-Sentry [Rating: 18] Favorites ----------- Power Light Ion Engine Engine Light Ion Engine Propulsion Light Treads Treads Light Treads Leg Carbon-fiber Leg Wheel Compact Wheel Hover Unit Gravmag System Utility Small Storage Unit Storage Small Storage Unit Weapon Chainsword Energy Gun Medium Laser Ballistic Gun Assault Rifle Launcher Mini Grenade Launcher Special Weapon Mining Laser Slashing Weapon Chainsword Build | -11 -10 -10 -9 -9 -9 -8 -8 ------- Run | Scr Mat Min Mat Min Exi Min Mat Slots Evolved 4 | . . . 2 . . . 2 Power . | . . . . . . . . Propulsion . | . . . . . . . . Utility 4 | . . . 2 . . . 2 Weapon . | . . . . . . . . Parts Attached 20 | 6 . . . 6 1 . 7 Power 2 | 1 . . . 1 . . . Engine 2 | 1 . . . 1 . . . Core . | . . . . . . . . Reactor . | . . . . . . . . Propulsion 9 | 2 . . . 2 . . 5 Treads 3 | 2 . . . 1 . . . Leg 2 | . . . . . . . 2 Wheel 3 | . . . . . . . 3 Hover 1 | . . . . 1 . . . Flight . | . . . . . . . . Utility 2 | 1 . . . . 1 . . Device . | . . . . . . . . Storage 2 | 1 . . . . 1 . . Processor . | . . . . . . . . Hackware . | . . . . . . . . Protection . | . . . . . . . . Artifact . | . . . . . . . . Weapon 7 | 2 . . . 3 . . 2 Energy Gun 2 | 1 . . . . . . 1 Energy Cannon . | . . . . . . . . Ballistic Gun 1 | 1 . . . . . . . Ballistic Cannon . | . . . . . . . . Launcher 2 | . . . . 1 . . 1 Special Weapon 1 | . . . . 1 . . . Impact Weapon . | . . . . . . . . Slashing Weapon 1 | . . . . 1 . . . Piercing Weapon . | . . . . . . . . Special Melee Weapon . | . . . . . . . . Unidentified Prototypes . | . . . . . . . . Parts Lost 10 | . . . . 6 . . 4 Power 1 | . . . . . . . 1 Propulsion 5 | . . . . 3 . . 2 Utility . | . . . . . . . . Weapon 4 | . . . . 3 . . 1 Highest Loss Streak 5 | . . . . 5 . . 2 Average Slot Usage (%) 56 | . 85 85 66 51 59 66 51 Engine 7 | . 14 14 11 11 11 11 2 Treads 6 | . 28 28 22 11 . . . Leg 2 | . . . . . . . 6 Wheel 1 | . . . . . . . 4 Hover 3 | . . . . . 11 11 2 Storage 15 | . 14 14 11 11 15 22 18 Energy Gun 3 | . 14 14 11 4 . . 2 Ballistic Gun 2 | . 14 14 11 4 . . . Launcher 6 | . . . . 6 11 11 6 Slashing Weapon 6 | . . . . 2 11 11 9 Naked Turns . | . . . . . . . . Heaviest Build 46 | 11 11 11 11 11 43 43 46 Greatest Support 40 | 40 40 40 40 40 11 11 32 Greatest Overweight (x) 15 | . . . . 3 3 3 15 Average Overweight (x) 1 | . . . . . . 3 2 Largest Inventory Capacity 14 | 6 6 6 6 6 14 14 14 Average Capacity 10 | 5 6 6 6 6 9 14 14 Most Carried 12 | 2 2 2 6 6 6 5 12 Average Carried 6 | . 2 2 3 4 5 5 9 Final Capacity 14 | 6 6 6 6 6 14 14 14 Final Carried 12 | 2 2 2 6 5 5 5 12 Class Distribution -------------------- 100% | Mutant Dominant Class ---------------- Mutant | -10/Materials Mutant | -10/Mines Mutant | -9/Materials Mutant | -9/Mines Mutant | -9/Exiles Mutant | -8/Mines Mutant | -8/Materials Resources | -11 -10 -10 -9 -9 -9 -8 -8 ----------- Run | Scr Mat Min Mat Min Exi Min Mat Matter Collected 562 | 168 . 34 . 225 . 18 117 Remotely . | . . . . . . . . Salvage Created 1365 | 91 . . 250 223 . . 801 Parts 69 | 3 . . 11 15 . . 40 Haulers Intercepted 1 | . . . . . . . 1 Recyclers Shooed . | . . . . . . . . Parts Field Recycled . | . . . . . . . . Retrieved Matter . | . . . . . . . . Parts Self-Destructed . | . . . . . . . . Prevented . | . . . . . . . . Kills | -11 -10 -10 -9 -9 -9 -8 -8 ------- Run | Scr Mat Min Mat Min Exi Min Mat Combat Hostiles Destroyed 31 | . . . 5 10 . . 16 Melee 8 | . . . . . . . 8 Guns 8 | . . . 5 2 . . 1 AOE 15 | . . . . 8 . . 7 Classes Destroyed 12 | 1 . . 2 5 . . 4 Tunneler 2 | . . . . 2 . . . Hauler 1 | . . . . . . . 1 Recycler 2 | 1 . . . . . . 1 Operator 1 | . . . . . . . 1 Watcher 1 | . . . . . . . 1 Swarmer 7 | . . . . 4 . . 3 Grunt 13 | . . . 4 3 . . 6 Duelist 1 | . . . . 1 . . . Sentry 7 | . . . 1 . . . 6 Demolisher 1 | . . . . 1 . . . Hunter 1 | . . . . . . . 1 Assembled 1 | . . . . 1 . . . Best Kill Streak 7 | 1 . . 3 6 . . 7 Combat Bots Only 7 | . . . 3 5 . . 7 Max Kills in Single Turn 5 | 1 . . 1 4 . . 5 Gunslinging . | . . . . . . . . Exploded 5 | . . . . 3 . . 5 Melee 1 | . . . . . . . 1 Uniques/NPCs Destroyed . | . . . . . . . . Combat | -11 -10 -10 -9 -9 -9 -8 -8 -------- Run | Scr Mat Min Mat Min Exi Min Mat Damage Taken 1682 | . . . 192 821 . . 669 Core 504 | . . . . 291 . . 213 Absorbed by Shields . | . . . . . . . . Core Remaining (%) 75 | 100 . 100 . . . 27 . Volleys Fired 48 | 2 . . 14 17 . . 15 Largest 2 | 2 . . 2 2 . . 1 Hottest 70 | 70 . . 70 70 . . 61 Shots Fired 72 | 4 . . 28 25 . . 15 Gun 58 | 4 . . 28 16 . . 10 Cannon . | . . . . . . . . Launcher 14 | . . . . 9 . . 5 Special . | . . . . . . . . Kinetic 24 | 2 . . 14 8 . . . Thermal 34 | 2 . . 14 8 . . 10 Explosive 13 | . . . . 9 . . 4 Electromagnetic 1 | . . . . . . . 1 Robot Hit Streak 11 | 4 . . 11 8 . . 10 Robot Miss Streak 2 | . . . 2 2 . . 2 Penetration Max . | . . . . . . . . Secondary Targets . | . . . . . . . . Shots Hit Robots 80 | 4 . . 22 18 . . 36 Core Hits 64 | 2 . . 11 19 . . 32 Critical Hits 1 | . . . . . . . 1 Critical Kills 1 | . . . . . . . 1 Critical Parts Destroyed . | . . . . . . . . Melee Attacks 47 | . . . . 2 . . 45 Impact . | . . . . . . . . Slashing 47 | . . . . 2 . . 45 Piercing . | . . . . . . . . Sneak Attacks 7 | . . . . 1 . . 6 Combat Hostiles . | . . . . . . . . Follow-up Attacks . | . . . . . . . . Damage Inflicted 3447 | 48 . . 288 778 . . 2333 Guns 585 | 48 . . 288 149 . . 100 Cannons . | . . . . . . . . Explosions 1125 | . . . . 469 . . 656 Melee 1737 | . . . . 160 . . 1577 Ramming . | . . . . . . . . Kinetic 209 | 23 . . 123 63 . . . Thermal 573 | 25 . . 165 132 . . 251 Explosive 796 | . . . . 423 . . 373 Electromagnetic 132 | . . . . . . . 132 Impact . | . . . . . . . . Slashing 1737 | . . . . 160 . . 1577 Piercing . | . . . . . . . . Highest Corruption 1 | . . . . . . . 1 Average Corruption 1 | . . . . . . . 1 Corruption Purged . | . . . . . . . . Effects 8 | . . . . . . . 8 Message Errors 4 | . . . . . . . 4 Energy Discharges 2 | . . . . . . . 2 Data Loss (minor) 1 | . . . . . . . 1 Targeting Errors 1 | . . . . . . . 1 Overload Shots . | . . . . . . . . Overflow Damage 426 | . . . . 120 . . 306 Projectiles . | . . . . . . . . Explosions 32 | . . . . 30 . . 2 Melee 394 | . . . . 90 . . 304 Knockbacks . | . . . . . . . . Impact . | . . . . . . . . Kinetic . | . . . . . . . . Secondary . | . . . . . . . . Self-Inflicted Damage 275 | . . . . 244 . . 31 Shots 8 | . . . . 7 . . 1 Rammed . | . . . . . . . . Targets Rammed . | . . . . . . . . Kicked . | . . . . . . . . Crushed . | . . . . . . . . Highest Temperature 51 | 18 . . 51 39 . . 2 Average Temperature 21 | 10 . . 23 22 . . 2 Received Heat Transfer 321 | . . . 93 39 . . 189 Siege Activations . | . . . . . . . . Robots Corrupted . | . . . . . . . . Combat Hostiles . | . . . . . . . . Parts Fried . | . . . . . . . . Impact Corruptions . | . . . . . . . . Robots Melted . | . . . . . . . . Combat Hostiles . | . . . . . . . . Parts Melted 1 | . . . 1 . . . . Heat Transferred 1099 | 74 . . 481 309 . . 235 Parts Sabotaged . | . . . . . . . . Parts Stolen . | . . . . . . . . Parts Stripped . | . . . . . . . . Power Chain Reactions 1 | . . . . . . . 1 Missiles Intercepted . | . . . . . . . . Alert | -11 -10 -10 -9 -9 -9 -8 -8 ------- Run | Scr Mat Min Mat Min Exi Min Mat Peak Influence 354 | 5 30 11 142 215 . . 354 Initial 55 | . 3 11 3 55 . . . Average 105 | 1 11 11 44 94 . . 171 Maximum Alert Level 1 | . . . . 1 . . 1 Low Security (%) 67 | 100 100 100 100 83 . 100 37 Level 1 32 | . . . . 16 . . 62 Level 2 . | . . . . . . . . Level 3 . | . . . . . . . . Level 4 . | . . . . . . . . Level 5 . | . . . . . . . . High Security . | . . . . . . . . Max Security . | . . . . . . . . Squads Dispatched 6 | . . . 1 . . . 5 Investigation 2 | . . . 1 . . . 1 Extermination . | . . . . . . . . Reinforcement 4 | . . . . . . . 4 Assault . | . . . . . . . . Garrison . | . . . . . . . . Intercept . | . . . . . . . . Construction Impeded 1 | . . . . . . . 1 Haulers Reinforced . | . . . . . . . . Stealth | -11 -10 -10 -9 -9 -9 -8 -8 --------- Run | Scr Mat Min Mat Min Exi Min Mat Distress Signals 2 | . . . . . . . 2 Communications Jammed . | . . . . . . . . Distress Signals . | . . . . . . . . Times Spotted 53 | . 1 . 7 11 . . 34 Peak Tracking Total 8 | . 2 . 3 2 . . 8 Tactical Retreats 7 | . . . . 3 . . 4 Traps | -11 -10 -10 -9 -9 -9 -8 -8 ------- Run | Scr Mat Min Mat Min Exi Min Mat Traps Triggered 1 | . . . . . . . 1 Indirectly . | . . . . . . . . Trap Hack Attempts . | . . . . . . . . Triggered . | . . . . . . . . Disarmed . | . . . . . . . . Reprogrammed . | . . . . . . . . Reused . | . . . . . . . . Traps Extracted . | . . . . . . . . Installed . | . . . . . . . . Triggered . | . . . . . . . . Machines | -11 -10 -10 -9 -9 -9 -8 -8 ---------- Run | Scr Mat Min Mat Min Exi Min Mat Machines Disabled 1 | . . . . 1 . . . Max in Single Turn 1 | . . . . 1 . . . Machines Sabotaged . | . . . . . . . . Garrisons Compromised . | . . . . . . . . Overloaded Fab Kills . | . . . . . . . . Fab Network Shutdowns . | . . . . . . . . Hacking | -11 -10 -10 -9 -9 -9 -8 -8 --------- Run | Scr Mat Min Mat Min Exi Min Mat Machines Accessed 14 | . 3 . 3 1 2 . 5 Terminals 9 | . 3 . 3 . . . 3 Fabricators . | . . . . . . . . Repair Stations . | . . . . . . . . Recycling Units 1 | . . . . . . . 1 Scanalyzers 1 | . . . . . . . 1 Garrison Access . | . . . . . . . . Total Hacks 50 | . 12 . 12 1 3 . 22 Successful 35 | . 9 . 8 1 3 . 14 Failed 15 | . 3 . 4 . . . 8 Catastrophic 1 | . 1 . . . . . . Database Lockouts . | . . . . . . . . Manual 39 | . 9 . 11 . 1 . 18 Terminals 44 | . 12 . 12 . . . 20 Fabricators . | . . . . . . . . Repair Stations . | . . . . . . . . Recycling Units 1 | . . . . . . . 1 Scanalyzers 1 | . . . . . . . 1 Garrison Access . | . . . . . . . . Terminal Hacks 16 | . 4 . 2 1 3 . 6 Record 4 | . . . 1 . 2 . 1 Part Schematic 1 | . 1 . . . . . . Prototype ID Bank 3 | . 2 . . . . . 1 Open Door 1 | . . . . 1 . . . Branch Access Points 1 | . 1 . . . . . . Terminal Index 2 | . . . 1 . . . 1 Fabricator Index 1 | . . . . . . . 1 Scanalyzer Index 1 | . . . . . . . 1 Zone Layout 1 | . . . . . . . 1 EX-Prototype ID Bank 1 | . . . . . 1 . . Fabricator Hacks . | . . . . . . . . Repair Station Hacks . | . . . . . . . . Recycling Unit Hacks 1 | . . . . . . . 1 Report Inventory 1 | . . . . . . . 1 Scanalyzer 1 | . . . . . . . 1 Insert Component 1 | . . . . . . . 1 Garrison Access Hacks . | . . . . . . . . Unauthorized Hacks 17 | . 5 . 6 . . . 6 Terminals 17 | . 5 . 6 . . . 6 Track 5 | . 1 . 2 . . . 2 Botnet 8 | . 3 . 3 . . . 2 Operators 4 | . 1 . 1 . . . 2 Fabricators . | . . . . . . . . Repair Stations . | . . . . . . . . Recycling Units . | . . . . . . . . Scanalyzers . | . . . . . . . . Garrison Access . | . . . . . . . . Data Cores Recovered . | . . . . . . . . Used . | . . . . . . . . Hacking Detections 9 | . 3 . 3 . . . 3 Full Trace Events 2 | . . . 1 . . . 1 Feedback Events . | . . . . . . . . Feedback Blocked . | . . . . . . . . Robot Schematics Acquired . | . . . . . . . . Robots Built . | . . . . . . . . Matter . | . . . . . . . . Time . | . . . . . . . . Total Robot Build Rating . | . . . . . . . . Part Schematics Acquired 1 | . 1 . . . . . . Parts Built . | . . . . . . . . Matter . | . . . . . . . . Time . | . . . . . . . . Total Part Build Rating . | . . . . . . . . Parts Repaired . | . . . . . . . . Time . | . . . . . . . . Parts Recycled . | . . . . . . . . Recycled Matter . | . . . . . . . . Retrieved Matter . | . . . . . . . . Retrieved Components . | . . . . . . . . Parts Scanalyzed . | . . . . . . . . Part Schematics Acquired . | . . . . . . . . Parts Damaged . | . . . . . . . . Bothacking | -11 -10 -10 -9 -9 -9 -8 -8 ------------ Run | Scr Mat Min Mat Min Exi Min Mat Used RIF Installer . | . . . . . . . . Robots Hacked . | . . . . . . . . Non-combat . | . . . . . . . . Combat . | . . . . . . . . Robot Hacks Applied . | . . . . . . . . Relay Couplers Released . | . . . . . . . . Robots Rewired . | . . . . . . . . Allies Hacked . | . . . . . . . . Hacks Repelled . | . . . . . . . . Allies | -11 -10 -10 -9 -9 -9 -8 -8 -------- Run | Scr Mat Min Mat Min Exi Min Mat Total Allies . | . . . . . . . . Largest Group . | . . . . . . . . Highest-Rated Group . | . . . . . . . . Highest-Rated Ally . | . . . . . . . . Total Orders . | . . . . . . . . Ally Attacks . | . . . . . . . . Total Damage . | . . . . . . . . Kills . | . . . . . . . . Allies Corrupted . | . . . . . . . . Allies Melted . | . . . . . . . . Intel | -11 -10 -10 -9 -9 -9 -8 -8 ------- Run | Scr Mat Min Mat Min Exi Min Mat Robot Analysis Total . | . . . . . . . . Derelict Logs Recovered 1 | . . . . 1 . . . Drone Launches . | . . . . . . . . Drone Recoveries . | . . . . . . . . Exploration | -11 -10 -10 -9 -9 -9 -8 -8 ------------- Run | Scr Mat Min Mat Min Exi Min Mat Turns Passed 3449 | 77 109 40 379 736 207 428 1473 Spaces Moved 1737 | 39 69 23 179 414 234 174 605 Core 120 | 4 . . . 102 . . 14 Treads 571 | 35 69 23 179 265 . . . Legs 221 | . . . . . . . 221 Wheels 199 | . . . . . . . 199 Hover 626 | . . . . 47 234 174 171 Flight . | . . . . . . . . Fastest Speed 50 | 50 160 160 160 60 60 240 110 Average Speed 163 | 148 160 160 160 154 86 240 178 Slowest Speed 800 | 160 160 160 160 200 240 240 800 Overloaded Moves . | . . . . . . . . Propulsion Burnouts . | . . . . . . . . Robots Hopped . | . . . . . . . . Cave-ins Triggered . | . . . . . . . . Exploration Rate (%) 35 | 3 19 8 22 69 60 50 51 Regions Visited 7 Branch Regions 4 Pre-discovered Areas 2 | . . . . 1 1 . . Known Exits Taken 1 | . 1 . . . . . . Unknown Exits Taken 6 | 1 . 1 1 1 1 1 . Scrap Searched 2 | . . 1 . . . 1 . Spaces Dug 4 | . . . . . . . 4 Terrain Destroyed 131 | . . . . 83 . . 48 Melee 4 | . . . . . . . 4 Projectile . | . . . . . . . . AOE 127 | . . . . 83 . . 44 Terrain Rammed . | . . . . . . . . Walls Destroyed . | . . . . . . . . Machines Disabled . | . . . . . . . . Actions | -11 -10 -10 -9 -9 -9 -8 -8 --------- Run | Scr Mat Min Mat Min Exi Min Mat Total 2211 | 54 68 26 244 480 241 185 913 Wait 327 | . . 4 48 36 . 12 227 Move 1730 | 38 68 22 178 413 233 173 605 Hop . | . . . . . . . . Pick Up 34 | 8 . . 4 5 4 . 13 Fast Attach . | . . . . . . . . Attach 18 | 6 . . . 5 1 . 6 Detach . | . . . . . . . . Swap 2 | . . . . 1 . . 1 Drop 5 | . . . . 1 3 . 1 Fire 48 | 2 . . 14 17 . . 15 Melee 47 | . . . . 2 . . 45 Ram . | . . . . . . . . Kick . | . . . . . . . . Crush . | . . . . . . . . Escape Stasis . | . . . . . . . . Rewire . | . . . . . . . . Trap . | . . . . . . . . Miscellaneous . | . . . . . . . . Route ------- -11/Scrapyard -10/Materials (discovered 2 exits: *Min x2) -10/Mines -9/Materials -9/Mines (discovered 3 exits: *Mat x2 / *Exi) -9/Exiles -8/Mines -8/Materials (discovered 2 exits: [*Fac] / [*Sto]) History --------- Turn | Location | Event 39 | -11/Scrapyard | Discovered new exit (range 16) 78 | -11/Scrapyard | Entered Materials 142 | -10/Materials | Identified exit to Mines 187 | -10/Materials | Entered Mines 205 | -10/Mines | Discovered new exit (range 9) 227 | -10/Mines | Entered Materials 227 | -9/Materials | Evolved 2 slots: Utility x2 307 | -9/Materials | Build established: Mutant 578 | -9/Materials | Discovered new exit (range 15) 606 | -9/Materials | Entered Mines 607 | -9/Mines | Met a Derelict bent on vengeance 795 | -9/Mines | Learned location of Storage (-8) 796 | -9/Mines | Discovered new exit (range 9) 858 | -9/Mines | Assembled infested the area 885 | -9/Mines | Discovered new exit (range 15) 910 | -9/Mines | Lost 5 parts (2n3w) 1043 | -9/Mines | Core integrity fell below 50% 1130 | -9/Mines | Met a Derelict who couldn't figure out how to use a Trap Extractor 1340 | -9/Mines | Discovered new exit (range 5) 1342 | -9/Mines | Entered Exiles 1357 | -9/Exiles | Met 8R-AWN 1367 | -9/Exiles | Met EX-HEX 1386 | -9/Exiles | Met EX-BIN 1394 | -9/Exiles | Aligned with FarCom system 1395 | -9/Exiles | Given EX-Vault access code 1409 | -9/Exiles | Opened EX-Vault 1413 | -9/Exiles | Found Deploy-a-Sentry 1415 | -9/Exiles | Found Deploy-a-Sentry 1417 | -9/Exiles | Found Deploy-a-Sentry 1431 | -9/Exiles | Warned to stay clear of 0b10 Research branches 1448 | -9/Exiles | Met EX-DEC 1451 | -9/Exiles | Learned location of Zion (-6) 1527 | -9/Exiles | Discovered new exit (range 11) 1549 | -9/Exiles | Left Exiles lab with Deploy-a-Sentry 1549 | -9/Exiles | Entered Mines 1941 | -8/Mines | Discovered new exit (range 15) 1977 | -8/Mines | Entered Materials 1977 | -8/Materials | Evolved 2 slots: Utility x2 2315 | -8/Materials | Discovered new exit (range 9) 2423 | -8/Materials | Discovered new exit (range 13) 2486 | -8/Materials | Destroyed 7 combat bots 3450 | -8/Materials | Self-destructed Last Messages --------------- 03303_ K-01 Serf collects debris. 03303_ R-06 Scavenger collects Prototype Energy Gun. 03311_ K-01 Serf collects debris. 03327_ W-25 Informer sends out distress signal. 03393_ Y-45 Defender destroyed. 03394_ U-05 Engineer builds a Door. 03396_ Destroyed Imp. Sensor Array. 03404_ G-47 Trooper Aluminum Leg severed. 03428_ System corrupted: Chainsword targeting data glitched. 03428_ Y-45 Defender destroyed. 03432_ Com. Wheel destroyed. 03433_ Y-45 Defender destroyed. 03439_ UTQFPU3YYPQZD5 28Y>Prototypes Downloading prototype IDs... Imp. Airjet Rocket Array 03444_ ALERT: Suspicious activity at Terminal M005. Dispatching Investigation squad. Map ----- +----------------------------------------------------+ | ### ## = = # # #????????????????? | | ### ## + ###+#############??????????? | | ### ## # #?? #??????????? | | /[ ### ## # #?? [[[ #??????????? | | /[ # ##] # #? [[ ??????????? | | [[ # ########## ##### #? = [[ ]########???? | | + ####?????# #???# # # #???? | | # ###!?????# #???# # """""??# """ #???? | | ###### t ## ?????# #???# / """""??# "Y" #???? | | ????# ## ?????# #???# # """""??# #???? | | ????# ### ######+##### # # ]#???? | | ????# #?# # ## ########## % #?? | | ##### #?# # # ##########+######+## | | #?# # = # g ^ | | #?# + + o< ^ | | #?# # #% ^ | | #?# # ""T""g# #################+## | | ## #?# + """"" #######??????????# ! | | # #?# # #????????????????# | | # ### ########+##????????????????# | | + #??????# #?????????????????# | | # ####???# #??????????????######+##### | | ## ###### ##### #??????????????# #?# | | *## #????# T #??????????????# """" #?? | | ### #????##### ##########???????????# """" #?? | | ??# #????????## #########@#???????????# """" #?? | | ??# #?????????# ## #???????????# #?? | | ??# ########### ## "" #???????????# ""#?? | | ??# # # ## "T #???????????# Y"#?? | | ??# # # ## "" #???????????# ! ""#?? | | ??# # !! # ## #???????????# #?? | | ??# # !! # ## """""=#???????????####/####### | | ??# # !! # ## """""[#?????????????# / | | ### # # ## """""%#?????+######## # | | + # # ## =[*!r*!+ # | | # # w # ######+####?????######### # | | # #######+### #### #??????????????# # | | # ! #??????????????# ###### | | + [%! = #????????#???### #### | | # ! ? ??? | | ## ##### g####### #######?? ?? | | ## #???# #?????#######???????? ??? | | ## #???# #???????????????????? ???########## | | ####+##### #???????????????????? ????????????## | | ??# # #????????????#??????# #??????????### | | ??# !# #??????????? #??????# #??????????# # | | ??#!!! # #??????????? #??????# #??????????# | | ??#!!! + #??????????" #??????# #??????????# # | | ??#!!! # #?????????? #??????# #????????????# | | ??# # #????????? ???????# #???????????## | +----------------------------------------------------+ Best States ------------- Heat Dissipation 31 Energy Generation 10 Energy Capacity 125 Matter Stores 300 Matter Capacity 300 Sight Range 16 Terrain Scan Density 10 Evasion (%) 53 Recoil Reduction 2 Item Schematics ----------------- Hcp. Storage Unit | -10/Materials | Hacked Robot Schematics ------------------ None Fabricated ------------ Nothing Alien Tech Used ----------------- None Achievements -------------- I Survived The Infestation Quick And Dirty Challenges ------------ None Game ------ Seed KineticSeismicAirjet Manual? 0 Play Time 00:33:24 Cumulative 12.9 hours Start 2021.11.01 @ 15:01:35 End 2021.11.02 @ 19:41:48 Sessions 4 Manual Loads 0 Difficulty Rogue Special Mode None Game No. 13 Rogue 13 Adventurer 0 Explorer 0 Win Type - Total 0 Types 0/0/0/0/0/0/0/0/0 Lore% 20 Gallery% 22 Achievement% 19 Wizard Run 0 Options --------- ASCII 0 Keyboard 0 Movement Mouse Keybinds 0 Fullscreen 1 Font 18/SmallcapsGlow Map View 76x50 Tactical HUD 1 Map Filters NONE Filters NONE Steam 1 RUN: bcbe95c8-bcb3-44c6-9369-8fe2b30dea45